fUSD/lending_fUSD_20240427
["ID","MTS","AMOUNT","RATE_DAILY","PERIOD"]
[323740797,1714227053579,-1050.01,0.00011506,2]
[323740798,1714227053590,-1838.95,0.00011506,2]
[323740799,1714227053602,-622.8,0.00011506,2]
[323740800,1714227053613,-500.0,0.00011506,2]
[323740801,1714227053624,-500.0,0.00011506,2]
[323740802,1714227053635,-500.0,0.00011506,2]
[323740803,1714227053655,-500.0,0.00011506,2]
[323740804,1714227053676,-500.0,0.00011506,2]
[323740805,1714227053694,-1113.94,0.00011506,2]
[323740806,1714227053704,-500.0,0.00011506,2]
[323740807,1714227053715,-1109.93,0.00011506,2]
[323740808,1714227053725,-500.0,0.00011506,2]
[323740809,1714227053735,-956.2,0.00011506,2]
[323740810,1714227053744,-500.0,0.00011506,2]
[323740811,1714227053754,-500.0,0.00011506,2]
[323740812,1714227053763,-1368.98,0.00011506,2]
[323740813,1714227053772,-1070.84,0.00011506,2]
[323740814,1714227053781,-1516.8,0.00011506,2]
[323740815,1714227053790,-500.0,0.00011506,2]
[323740816,1714227053800,-641.53,0.00011506,2]
[323740817,1714227053809,-500.0,0.00011506,2]
[323740818,1714227053819,-599.7,0.00011509,2]
[323740819,1714227053829,-1628.58,0.00011509,2]
[323740820,1714227053838,-1052.57,0.00011509,2]
[323740821,1714227053847,-2275.78,0.00011509,2]
[323740822,1714227053856,-489.98,0.00011509,2]
[323740823,1714227053865,-1285.81,0.00011509,2]
[323740824,1714227053875,-1756.76,0.00011509,2]
[323740825,1714227053885,-2633.95,0.00011509,2]
[323740826,1714227053894,-1358.04,0.00011509,2]
[323740827,1714227053903,-1534.48,0.00011509,2]
[323740828,1714227053912,-1034.62,0.00011509,2]
[323740829,1714227053922,-1596.37,0.00011509,2]
[323740830,1714227053931,-734.74,0.00011509,2]
[323740831,1714227053940,-235.92015187,0.00011509,2]
[323740832,1714227053950,-1539.1,0.00011509,2]
[323740833,1714227053959,-577.25,0.00011509,2]
[323740834,1714227053969,-901.74,0.00011509,2]
[323740835,1714227053978,-1139.42,0.00011509,2]
[323740836,1714227053987,-1238.44,0.00011509,2]
[323740837,1714227053996,-2147.88,0.00011509,2]
[323740838,1714227054005,-860.26,0.00011509,2]
[323740839,1714227054014,-283.99992762,0.00011516,2]
[323740840,1714227054023,-169.07177893,0.00011518,2]
[323740841,1714227054033,-206.0,0.0001158,2]
[323740842,1714227054042,-1689.07285348,0.0001159,2]
[323740843,1714227054051,-1954.53061181,0.0001159,2]
[323740844,1714227054061,-1259.26248483,0.0001159,2]
[323740845,1714227054071,-155.0,0.000116,2]
[323740846,1714227054081,-443.39,0.00011624,2]
[323740847,1714227054090,-500.0,0.00011624,2]
[323740848,1714227054099,-500.0,0.00011624,2]
[323740849,1714227054108,-500.0,0.00011624,2]
[323740850,1714227054117,-500.0,0.00011624,2]
[323740851,1714227054126,-506.77098277,0.00011624,2]
[323740852,1714227054136,-500.0,0.00011624,2]
[323740853,1714227054145,-500.0,0.00011624,2]
[323740854,1714227054154,-500.0,0.00011624,2]
[323740855,1714227054163,-500.0,0.00011624,2]
[323740856,1714227054172,-500.0,0.00011624,2]
[323740857,1714227054182,-500.0,0.00011624,2]
[323740858,1714227054191,-500.0,0.00011624,2]
[323740859,1714227054200,-500.0,0.00011624,2]
[323740860,1714227054209,-500.0,0.00011624,2]
[323740861,1714227054218,-383.34871412,0.00011624,2]
[323740862,1714227054227,-500.0,0.00011624,2]
[323740863,1714227054236,-500.0,0.00011624,2]
[323740864,1714227054246,-500.0,0.00011624,2]
[323740865,1714227054255,-500.0,0.00011624,2]
[323740866,1714227054264,-500.0,0.00011624,2]
[323740867,1714227054273,-500.0,0.00011624,2]
[323740868,1714227054282,-500.0,0.00011624,2]
[323740869,1714227054291,-500.0,0.00011624,2]
[323740870,1714227054300,-500.0,0.00011624,2]
[323740871,1714227054316,-500.0,0.00011624,2]
[323740872,1714227054331,-500.0,0.00011624,2]
[323740873,1714227054340,-500.0,0.00011624,2]
[323740874,1714227054350,-500.0,0.00011624,2]
[323740875,1714227054360,-500.0,0.00011624,2]
[323740876,1714227054369,-500.0,0.00011624,2]
[323740877,1714227054379,-500.0,0.00011624,2]
[323740878,1714227054389,-500.0,0.00011624,2]
[323740879,1714227054399,-500.0,0.00011624,2]
[323740880,1714227054408,-500.0,0.00011624,2]
[323740881,1714227054418,-500.0,0.00011624,2]
[323740882,1714227054429,-500.0,0.00011624,2]
[323740883,1714227054439,-500.0,0.00011624,2]
[323740884,1714227054448,-500.0,0.00011624,2]
[323740885,1714227054458,-613.00530994,0.00011624,2]
[323740886,1714227054468,-500.0,0.00011624,2]
[323740887,1714227054478,-500.0,0.00011624,2]
[323740888,1714227054487,-500.0,0.00011624,2]
[323740889,1714227054497,-500.0,0.00011624,2]
[323740890,1714227054507,-608.16,0.00011624,2]
[323740891,1714227054517,-537.7,0.00011624,2]
[323740892,1714227054526,-500.0,0.00011624,2]
[323740893,1714227054535,-500.0,0.00011624,2]
[323740894,1714227054545,-500.0,0.00011624,2]
[323740895,1714227054557,-500.0,0.00011624,2]
[323740896,1714227054567,-500.0,0.00011624,2]
[323740897,1714227054577,-283.99992762,0.00011644,2]
[323740898,1714227054586,-500.0,0.00011652,2]
[323740899,1714227054597,-935.19,0.00011652,2]
[323740900,1714227054606,-2173.66,0.00011652,2]
[323740901,1714227054616,-1399.7,0.00011652,2]
[323740902,1714227054626,-1153.92,0.00011652,2]
[323740903,1714227054635,-738.0,0.00011652,2]
[323740904,1714227054645,-2603.24,0.00011652,2]
[323740905,1714227054655,-1023.42,0.00011652,2]
[323740906,1714227054664,-5237.2,0.00011652,2]
[323740907,1714227054674,-967.73,0.00011652,2]
[323740908,1714227054683,-1507.96,0.00011652,2]
[323740909,1714227054693,-2311.59,0.00011652,2]
[323740910,1714227054702,-500.0,0.00011652,2]
[323740911,1714227054712,-821.82,0.00011652,2]
[323740912,1714227054721,-1292.0,0.00011652,2]
[323740913,1714227054731,-500.0,0.00011652,2]
[323740914,1714227054740,-460.16,0.00011661,2]
[323740915,1714227054749,-19579.00170728,0.000117,2]
[323740916,1714227054759,-169.07177893,0.00011709,2]
[323740917,1714227054768,-587.51901686,0.00011709,2]
[323740918,1714227054778,-500.0,0.00011709,2]
[323740919,1714227054788,-500.0,0.00011709,2]
[323740920,1714227054797,-500.0,0.00011709,2]
[323740921,1714227054807,-500.0,0.00011709,2]
[323740922,1714227054817,-500.0,0.00011709,2]
[323740923,1714227054826,-500.0,0.00011709,2]
[323740924,1714227054836,-500.0,0.00011709,2]
[323740925,1714227054846,-496.4578015,0.00011709,2]
[323740926,1714227054855,-500.0,0.00011709,2]
[323740927,1714227054865,-500.0,0.00011709,2]
[323740928,1714227054874,-500.0,0.00011709,2]
[323740929,1714227054884,-500.0,0.00011709,2]
[323740930,1714227054893,-465.80976345,0.00011709,2]
[323740931,1714227054902,-500.0,0.00011709,2]
[323740932,1714227054912,-500.0,0.00011709,2]
[323740933,1714227054921,-500.0,0.00011709,2]
[323740934,1714227054930,-500.0,0.00011709,2]
[323740935,1714227054941,-500.0,0.00011709,2]
[323740936,1714227054950,-500.0,0.00011709,2]
[323740937,1714227054960,-500.0,0.00011709,2]
[323740938,1714227054970,-646.82,0.00011709,2]
[323740939,1714227054979,-500.0,0.00011709,2]
[323740940,1714227054989,-500.0,0.00011709,2]
[323740941,1714227054999,-500.0,0.00011709,2]
[323740942,1714227055009,-500.0,0.00011709,2]
[323740943,1714227055018,-500.0,0.00011709,2]
[323740944,1714227055027,-910.78,0.00011709,2]
[323740945,1714227055037,-500.0,0.00011709,2]
[323740946,1714227055046,-500.0,0.00011709,2]
[323740947,1714227055055,-591.84,0.00011709,2]
[323740948,1714227055065,-500.0,0.00011709,2]
[323740949,1714227055075,-500.0,0.00011709,2]
[323740950,1714227055085,-414.41414257,0.00011709,2]
[323740951,1714227055095,-500.0,0.00011709,2]
[323740952,1714227055104,-500.0,0.00011709,2]
[323740953,1714227055114,-639.9,0.00011709,2]
[323740954,1714227055123,-500.0,0.00011709,2]
[323740955,1714227055132,-500.0,0.00011709,2]
[323740956,1714227055142,-500.0,0.00011709,2]
[323740957,1714227055151,-676.92,0.00011709,2]
[323740958,1714227055161,-500.0,0.00011709,2]
[323740959,1714227055171,-500.0,0.00011709,2]
[323740960,1714227055181,-500.0,0.00011709,2]
[323740961,1714227055191,-500.0,0.00011709,2]
[323740962,1714227055201,-500.0,0.00011709,2]
[323740963,1714227055210,-500.0,0.00011709,2]
[323740964,1714227055220,-592.31,0.00011709,2]
[323740965,1714227055229,-500.0,0.00011709,2]
[323740966,1714227055238,-574.01,0.00011709,2]
[323740967,1714227055248,-500.0,0.00011709,2]
[323740968,1714227055257,-200.83,0.00011709,2]
[323740969,1714227055267,-500.0,0.00011709,2]
[323740970,1714227055276,-500.0,0.00011709,2]
[323740971,1714227055285,-500.0,0.00011709,2]
[323740972,1714227055295,-500.0,0.00011709,2]
[323740973,1714227055304,-500.0,0.00011709,2]
[323740974,1714227055314,-500.0,0.00011709,2]
[323740975,1714227055323,-500.0,0.00011709,2]
[323740976,1714227055334,-500.0,0.00011709,2]
[323740977,1714227055343,-500.0,0.00011709,2]
[323740978,1714227055353,-500.0,0.00011709,2]
[323740979,1714227055363,-500.0,0.00011709,2]
[323740980,1714227055372,-500.0,0.00011709,2]
[323740981,1714227055381,-500.0,0.00011709,2]
[323740982,1714227055391,-500.0,0.00011709,2]
[323740983,1714227055400,-500.0,0.00011709,2]
[323740984,1714227055410,-939.62,0.00011709,2]
[323740985,1714227055419,-500.0,0.00011709,2]
[323740986,1714227055428,-501.17610333,0.00011709,2]
[323740987,1714227055437,-500.0,0.00011709,2]
[323740988,1714227055447,-655.09,0.00011709,2]
[323740989,1714227055456,-500.0,0.00011709,2]
[323740990,1714227055466,-708.93,0.00011709,2]
[323740991,1714227055475,-500.0,0.00011709,2]
[323740992,1714227055484,-500.0,0.00011709,2]
[323740993,1714227055493,-500.0,0.00011709,2]
[323740994,1714227055502,-500.0,0.00011709,2]
[323740995,1714227055511,-500.0,0.00011709,2]
[323740996,1714227055520,-552.47,0.00011709,2]
[323740997,1714227055529,-500.0,0.00011709,2]
[323740998,1714227055538,-500.0,0.00011709,2]
[323740999,1714227055547,-500.0,0.00011709,2]
[323741000,1714227055560,-500.0,0.00011709,2]
[323741001,1714227055569,-926.45,0.00011709,2]
[323741002,1714227055578,-1523.57,0.00011709,2]
[323741003,1714227055587,-500.0,0.00011709,2]
[323741004,1714227055597,-500.0,0.00011709,2]
[323741005,1714227055606,-500.0,0.00011709,2]
[323741006,1714227055615,-500.0,0.00011709,2]
[323741007,1714227055625,-620.85,0.00011709,2]
[323741008,1714227055634,-624.43,0.00011709,2]
[323741009,1714227055643,-500.0,0.00011709,2]
[323741010,1714227055652,-621.01,0.00011709,2]
[323741011,1714227055661,-7590.37,0.00011709,2]
[323741012,1714227055671,-500.0,0.00011709,2]
[323741013,1714227055680,-500.0,0.00011709,2]
[323741014,1714227055690,-500.0,0.00011709,2]
[323741015,1714227055699,-500.0,0.00011709,2]
[323741016,1714227055708,-500.0,0.00011709,2]
[323741017,1714227055717,-500.0,0.00011709,2]
[323741018,1714227055726,-500.0,0.00011709,2]
[323741019,1714227055736,-630.82,0.00011709,2]
[323741020,1714227055745,-500.0,0.00011709,2]
[323741021,1714227055754,-730.04,0.00011709,2]
[323741022,1714227055763,-2425.52,0.00011709,2]
[323741023,1714227055773,-500.0,0.00011709,2]
[323741024,1714227055782,-1333.12,0.00011709,2]
[323741025,1714227055791,-500.0,0.00011709,2]
[323741026,1714227055801,-500.0,0.00011709,2]
[323741027,1714227055817,-500.0,0.00011709,2]
[323741028,1714227055840,-500.0,0.00011709,2]
[323741029,1714227055860,-500.0,0.00011709,2]
[323741030,1714227055883,-500.0,0.00011709,2]
[323741031,1714227055907,-1734.77,0.00011709,2]
[323741032,1714227055928,-594.85,0.00011709,2]
[323741033,1714227055948,-1682.66,0.00011709,2]
[323741034,1714227055970,-500.0,0.00011709,2]
[323741035,1714227055991,-500.0,0.00011709,2]
[323741036,1714227056013,-500.0,0.00011709,2]
[323741037,1714227056022,-1628.23,0.00011709,2]
[323741038,1714227056031,-500.0,0.00011709,2]
[323741039,1714227056039,-500.0,0.00011709,2]
[323741040,1714227056048,-500.0,0.00011709,2]
[323741041,1714227056058,-1137.53,0.00011709,2]
[323741042,1714227056067,-500.0,0.00011709,2]
[323741043,1714227056076,-508.43,0.00011709,2]
[323741044,1714227056086,-595.4,0.00011709,2]
[323741045,1714227056096,-500.0,0.00011709,2]
[323741046,1714227056105,-500.0,0.00011709,2]
[323741047,1714227056114,-500.0,0.00011709,2]
[323741048,1714227056123,-1525.07,0.00011709,2]
[323741049,1714227056132,-206.0,0.0001173,2]
[323741050,1714227056141,-43365.60396013,0.0001177,2]
[323741051,1714227056151,-283.99992762,0.00011772,2]
[323741052,1714227056160,-500.0,0.0001178,2]
[323741053,1714227056170,-500.0,0.0001178,2]
[323741054,1714227056179,-500.0,0.0001178,2]
[323741055,1714227056189,-500.0,0.0001178,2]
[323741056,1714227056199,-500.0,0.0001178,2]
[323741057,1714227056209,-601.09,0.0001178,2]
[323741058,1714227056218,-500.0,0.0001178,2]
[323741059,1714227056228,-500.0,0.0001178,2]
[323741060,1714227056238,-500.0,0.0001178,2]
[323741061,1714227056247,-500.0,0.0001178,2]
[323741062,1714227056256,-500.0,0.0001178,2]
[323741063,1714227056266,-500.0,0.0001178,2]
[323741064,1714227056275,-500.0,0.0001178,2]
[323741065,1714227056284,-500.0,0.0001178,2]
[323741066,1714227056293,-500.0,0.0001178,2]
[323741067,1714227056303,-500.0,0.0001178,2]
[323741068,1714227056312,-500.0,0.0001178,2]
[323741069,1714227056321,-500.0,0.0001178,2]
[323741070,1714227056331,-500.0,0.0001178,2]
[323741071,1714227056507,-500.0,0.0001178,2]
[323741072,1714227056516,-500.0,0.0001178,2]
[323741073,1714227056526,-500.0,0.0001178,2]
[323741074,1714227056535,-500.0,0.0001178,2]
[323741075,1714227056545,-500.0,0.0001178,2]
[323741076,1714227056557,-1620.38,0.0001178,2]
[323741077,1714227056566,-500.0,0.0001178,2]
[323741078,1714227056575,-747.0,0.0001178,2]
[323741079,1714227056585,-500.0,0.0001178,2]
[323741080,1714227056595,-500.0,0.0001178,2]
[323741081,1714227056603,-500.0,0.0001178,2]
[323741082,1714227056613,-500.0,0.0001178,2]
[323741083,1714227056622,-520.92,0.0001178,2]
[323741084,1714227056633,-500.0,0.0001178,2]
[323741085,1714227056642,-649.36,0.0001178,2]
[323741086,1714227056652,-500.0,0.0001178,2]
[323741087,1714227056661,-500.0,0.0001178,2]
[323741088,1714227056671,-500.0,0.0001178,2]
[323741089,1714227056680,-500.0,0.0001178,2]
[323741090,1714227056690,-195.97981434,0.0001178,2]
[323741091,1714227056699,-500.0,0.0001178,2]
[323741092,1714227056709,-500.0,0.0001178,2]
[323741093,1714227056718,-500.0,0.0001178,2]
[323741094,1714227056728,-500.0,0.0001178,2]
[323741095,1714227056737,-850.26,0.0001178,2]
[323741096,1714227056746,-500.0,0.0001178,2]
[323741097,1714227056755,-500.0,0.0001178,2]
[323741098,1714227056764,-324.23261735,0.0001178,2]
[323741099,1714227056773,-500.0,0.0001178,2]
[323741100,1714227056783,-500.0,0.0001178,2]
[323741101,1714227056792,-208.10042336,0.0001178,2]
[323741102,1714227056801,-500.0,0.0001178,2]
[323741103,1714227056810,-500.0,0.0001178,2]
[323741104,1714227056819,-580.92,0.0001178,2]
[323741105,1714227056828,-500.0,0.0001178,2]
[323741106,1714227056838,-500.0,0.0001178,2]
[323741107,1714227056848,-500.0,0.0001178,2]
[323741108,1714227056857,-500.0,0.0001178,2]
[323741109,1714227056866,-11602.13,0.0001178,2]
[323741110,1714227056876,-500.0,0.0001178,2]
[323741111,1714227056885,-500.0,0.0001178,2]
[323741112,1714227056894,-527.4,0.0001178,2]
[323741113,1714227056903,-846.12,0.0001178,2]
[323741114,1714227056912,-753.51,0.0001178,2]
[323741115,1714227056921,-500.0,0.0001178,2]
[323741116,1714227056930,-1275.12,0.0001178,2]
[323741117,1714227056940,-1313.14,0.0001178,2]
[323741118,1714227056949,-577.0,0.0001178,2]
[323741119,1714227056958,-1721.96,0.0001178,2]
[323741120,1714227056967,-500.0,0.0001178,2]
[323741121,1714227056976,-749.15,0.0001178,2]
[323741122,1714227056986,-500.0,0.0001178,2]
[323741123,1714227056996,-1374.52,0.0001178,2]
[323741124,1714227057005,-872.29,0.0001178,2]
[323741125,1714227057014,-500.0,0.0001178,2]
[323741126,1714227057024,-687.0,0.0001178,2]
[323741127,1714227057033,-1361.65,0.0001178,2]
[323741128,1714227057042,-18149.15,0.0001178,2]
[323741129,1714227057051,-500.0,0.0001178,2]
[323741130,1714227057061,-500.0,0.0001178,2]
[323741131,1714227057070,-500.0,0.0001178,2]
[323741132,1714227057080,-596.88,0.0001178,2]
[323741133,1714227057089,-500.0,0.0001178,2]
[323741134,1714227057098,-1288.24,0.0001178,2]
[323741135,1714227057108,-500.0,0.0001178,2]
[323741136,1714227057117,-1242.88,0.0001178,2]
[323741137,1714227057126,-1012.52,0.0001178,2]
[323741138,1714227057136,-1247.22,0.0001178,2]
[323741139,1714227057145,-909.14,0.0001178,2]
[323741140,1714227057155,-743.48,0.0001178,2]
[323741141,1714227057165,-3099.94,0.0001178,2]
[323741142,1714227057175,-894.36,0.0001178,2]
[323741143,1714227057184,-1029.15,0.0001178,2]
[323741144,1714227057194,-629.22,0.0001178,2]
[323741145,1714227057204,-1225.48,0.0001178,2]
[323741146,1714227057213,-500.0,0.0001178,2]
[323741147,1714227057223,-1156.35,0.0001178,2]
[323741148,1714227057232,-1844.99,0.0001178,2]
[323741149,1714227057241,-1619.27,0.0001178,2]
[323741150,1714227057251,-1066.24,0.0001178,2]
[323741151,1714227057260,-500.0,0.0001178,2]
[323741152,1714227057269,-1350.26,0.0001178,2]
[323741153,1714227057278,-1720.33,0.0001178,2]
[323741154,1714227057287,-500.0,0.0001178,2]
[323741155,1714227057296,-500.0,0.0001178,2]
[323741156,1714227057306,-1240.19,0.0001178,2]
[323741157,1714227057315,-830.29,0.0001178,2]
[323741158,1714227057325,-1030.22,0.0001178,2]
[323741159,1714227057334,-500.0,0.0001178,2]
[323741160,1714227057343,-567.86,0.0001178,2]
[323741161,1714227057353,-4668.38,0.0001178,2]
[323741162,1714227057362,-832.62,0.0001178,2]
[323741163,1714227057372,-1528.89,0.0001178,2]
[323741164,1714227057381,-573.57,0.0001178,2]
[323741165,1714227057391,-500.0,0.0001178,2]
[323741166,1714227057400,-1341.81,0.0001178,2]
[323741167,1714227057410,-564.72,0.0001178,2]
[323741168,1714227057420,-500.0,0.0001178,2]
[323741169,1714227057429,-4767.18,0.0001178,2]
[323741170,1714227057438,-636.13,0.0001178,2]
[323741171,1714227057447,-846.66,0.0001178,2]
[323741172,1714227057457,-1929.36,0.0001178,2]
[323741173,1714227057466,-2025.38,0.0001178,2]
[323741174,1714227057474,-1836.74,0.0001178,2]
[323741175,1714227057483,-663.91,0.0001178,2]
[323741176,1714227057492,-1678.47,0.0001178,2]
[323741177,1714227057501,-500.0,0.0001178,2]
[323741178,1714227057510,-586.99,0.0001178,2]
[323741179,1714227057519,-500.0,0.0001178,2]
[323741180,1714227057529,-757.02,0.0001178,2]
[323741181,1714227057538,-702.58,0.0001178,2]
[323741182,1714227057547,-5033.54,0.0001178,2]
[323741183,1714227057559,-878.8,0.0001178,2]
[323741184,1714227057569,-500.0,0.0001178,2]
[323741185,1714227057578,-1022.59,0.0001178,2]
[323741186,1714227057588,-690.34,0.0001178,2]
[323741187,1714227057598,-1050.01,0.0001178,2]
[323741188,1714227057607,-1838.95,0.0001178,2]
[323741189,1714227057617,-622.8,0.0001178,2]
[323741190,1714227057626,-500.0,0.0001178,2]
[323741191,1714227057636,-500.0,0.0001178,2]
[323741192,1714227057646,-500.0,0.0001178,2]
[323741193,1714227057656,-500.0,0.0001178,2]
[323741194,1714227057665,-500.0,0.0001178,2]
[323741195,1714227057674,-1113.94,0.0001178,2]
[323741196,1714227057683,-500.0,0.0001178,2]
[323741197,1714227057692,-1109.93,0.0001178,2]
[323741198,1714227057702,-500.0,0.0001178,2]
[323741199,1714227057711,-956.2,0.0001178,2]
[323741200,1714227057721,-500.0,0.0001178,2]
[323741201,1714227057730,-1368.98,0.0001178,2]
[323741202,1714227057739,-1516.8,0.0001178,2]
[323741203,1714227057749,-1070.84,0.0001178,2]
[323741204,1714227057758,-641.53,0.0001178,2]
[323741205,1714227057767,-500.0,0.0001178,2]
[323741206,1714227057776,-599.7,0.00011783,2]
[323741207,1714227057785,-1628.58,0.00011783,2]
[323741208,1714227057794,-1052.57,0.00011783,2]
[323741209,1714227057804,-2275.78,0.00011783,2]
[323741210,1714227057813,-1285.81,0.00011783,2]
[323741211,1714227057822,-1756.76,0.00011783,2]
[323741212,1714227057832,-2633.95,0.00011783,2]
[323741213,1714227057841,-1358.04,0.00011783,2]
[323741214,1714227057850,-1534.48,0.00011783,2]
[323741215,1714227057860,-1034.62,0.00011783,2]
[323741216,1714227057869,-1596.37,0.00011783,2]
[323741217,1714227057878,-734.74,0.00011783,2]
[323741218,1714227057887,-1539.1,0.00011783,2]
[323741219,1714227057898,-577.25,0.00011783,2]
[323741220,1714227057907,-901.74,0.00011783,2]
[323741221,1714227057918,-1139.42,0.00011783,2]
[323741222,1714227057927,-1238.44,0.00011783,2]
[323741223,1714227057938,-2147.88,0.00011783,2]
[323741224,1714227057947,-860.26,0.00011783,2]
[323741225,1714227057957,-155.0,0.00011877,2]
[323741226,1714227057966,-206.0,0.0001188,2]
[323741227,1714227057975,-500.0,0.00011898,2]
[323741228,1714227057984,-500.0,0.00011898,2]
[323741229,1714227057994,-500.0,0.00011898,2]
[323741230,1714227058003,-510.78416114,0.00011898,2]
[323741231,1714227058013,-500.0,0.00011898,2]
[323741232,1714227058022,-500.0,0.00011898,2]
[323741233,1714227058031,-500.0,0.00011898,2]
[323741234,1714227058040,-500.0,0.00011898,2]
[323741235,1714227058049,-291.21,0.00011898,2]
[323741236,1714227058059,-500.0,0.00011898,2]
[323741237,1714227058068,-500.0,0.00011898,2]
[323741238,1714227058078,-500.0,0.00011898,2]
[323741239,1714227058087,-500.0,0.00011898,2]
[323741240,1714227058096,-500.0,0.00011898,2]
[323741241,1714227058106,-503.29,0.00011898,2]
[323741242,1714227058116,-500.0,0.00011898,2]
[323741243,1714227058125,-500.0,0.00011898,2]
[323741244,1714227058135,-500.0,0.00011898,2]
[323741245,1714227058144,-500.0,0.00011898,2]
[323741246,1714227058153,-500.0,0.00011898,2]
[323741247,1714227058162,-698841.729844,0.000119,2]
[323741248,1714227058171,-51879.48731597,0.000119,2]
[323741249,1714227058464,-129840.00793257,0.000119,2]
[323741250,1714227058473,-55392.35548042,0.000119,2]
[323741251,1714227058535,221.15,8.296e-05,2]
[323741252,1714227059162,-221.15,0.0001056,2]
[323741253,1714227059172,-2312.87923427,0.000119,2]
[323741254,1714227059184,-39393.5000664,0.000119,2]
[323741255,1714227059196,-8095.4174114,0.000119,2]
[323741256,1714227059207,-294.14994472,0.000119,2]
[323741257,1714227059253,-500.0,0.00010958,2]
[323741258,1714227059263,-306.1100004,0.00011161,2]
[323741259,1714227059275,-193.8899996,0.00011161,2]
[323741260,1714227059284,-492.1100024,0.000119,2]
[323741261,1714227059303,-2838.12070833,0.000119,2]
[323741262,1714227059314,-2279.79820878,0.000119,2]
[323741263,1714227059326,-1819.5472639,0.000119,2]
[323741264,1714227059336,-11554.2531876,0.000119,2]
[323741265,1714227059361,-284.83040661,0.00011435,2]
[323741266,1714227059373,-215.16959339,0.00011435,2]
[323741267,1714227059382,-78.13561977,0.000119,2]
[323741268,1714227059950,-500.0,0.00010958,2]
[323741269,1714227059966,-500.0,0.00010958,2]
[323741270,1714227059979,-500.0,0.00010958,2]
[323741271,1714227059995,-500.0,0.00011161,2]
[323741272,1714227060006,-521.44,0.00011161,2]
[323741273,1714227060024,-500.0,0.00011232,2]
[323741274,1714227060038,-500.0,0.00011232,2]
[323741275,1714227060053,-500.0,0.00011232,2]
[323741276,1714227060067,-174.76409424,0.0001125,2]
[323741277,1714227060083,-500.0,0.00011506,2]
[323741278,1714227060098,-500.0,0.00011506,2]
[323741279,1714227060113,-500.0,0.00011506,2]
[323741280,1714227060130,-196.22365687,0.0001159,2]
[323741281,1714227060143,-500.0,0.00011709,2]
[323741282,1714227060155,-500.0,0.0001178,2]
[323741283,1714227060169,-500.0,0.0001178,2]
[323741284,1714227060183,-4010.6494367,0.000119,2]
[323741285,1714227060211,-704.74,0.00010958,2]
[323741286,1714227060228,-5637.6194,0.000119,2]
[323741287,1714227060243,-3696.03882751,0.000119,2]
[323741288,1714227060286,-5200.0,0.000119,2]
[323741289,1714227060303,-640.7472672,0.000119,2]
[323741290,1714227060319,-24880.3792854,0.000119,2]
[323741291,1714227060337,-750.52233814,0.000119,2]
[323741292,1714227060354,-275.919,0.000119,2]
[323741293,1714227060533,-245.0520189,0.00011178,2]
[323741294,1714227060546,-704.74,0.00011232,2]
[323741295,1714227060561,-704.74,0.00011506,2]
[323741296,1714227060573,-376.27969376,0.0001178,2]